[Event "AUT-ch Open 2020"]
[Site "Graz"]
[Date "2020.02.19"]
[Round "7.24"]
[White "Godzwon, Iwo"]
[Black "Diermair, Andreas"]
[Result "1/2-1/2"]
[ECO "C92"]
[WhiteElo "2321"]
[BlackElo "2483"]
[Annotator "ChessBase"]
[PlyCount "111"]
[EventDate "2020.02.14"]
[EventType "swiss"]
[EventCountry "AUT"]
[SourceTitle "playchess.com"]
[Source "ChessBase"]
[SourceQuality "1"]
[TimeControl "40/5400+30:1800+30"]

1. e4 {[%emt 0:00:00]} e5 {[%emt 0:00:00]} 2. Nf3 {[%emt 0:00:00]} Nc6 {[%emt 0:00:00]} 3. Bb5 {[%emt 0:00:00]} a6 {[%emt 0:00:07]} 4. Ba4 {[%emt 0:00:00]} Nf6 {[%emt 0:00:06]} 5. O-O {[%emt 0:00:00]} Be7 {[%emt 0:00:38]} 6. Re1 {[%emt 0:00:00]} b5 {[%emt 0:00:03]} 7. Bb3 {[%emt 0:00:00]} O-O {[%emt 0:00:25]} 8. c3 {[%emt 0:00:00]} d6 {[%emt 0:00:13]} 9. h3 {[%emt 0:00:02]} Bb7 {[%emt 0:01:03]} 10. d4 {[%emt 0:00:11]} Re8 {[%emt 0:00:04]} 11. Nbd2 {[%emt 0:03:39]} Bf8 {[%emt 0:02:38]} 12. a3 {[%emt 0:00:06]} h6 {[%emt 0:00:08]} 13. d5 {[%emt 0:01:08]} Na5 {[%emt 0:02:31]} 14. Bc2 {[%emt 0:08:49]} c6 {[%emt 0:02:30]} 15. b4 {[%emt 0:06:25]} Nc4 {[%emt 0:00:06]} 16. Nxc4 {[%emt 0:00:02]} bxc4 {[%emt 0:00:05]} 17. Ba4 {[%emt 0:00:01]} cxd5 {[%emt 0:12:29]} 18. Bxe8 {[%emt 0:00:04]} Qxe8 {[%emt 0:04:15]} 19. exd5 {[%emt 0:00:05]} Qd7 {[%emt 0:01:54]} 20. Qe2 {[%emt 0:04:17]} Rc8 {[%emt 0:03:04]} 21. Nd2 {[%emt 0:07:07]} Bxd5 {[%emt 0:07:59]} 22. f3 {[%emt 0:00:38]} Be6 {[%emt 0:02:57]} 23. Nf1 {[%emt 0:05:56]} Nd5 {[%emt 0:05:53]} 24. Bd2 {[%emt 0:00:03]} Bf5 {[%emt 0:03:16]} 25. a4 {[%emt 0:01:13]} Be7 {[%emt 0:02:50]} 26. Qf2 {[%emt 0:02:56]} Bd3 {[%emt 0:03:46]} 27. Kh2 {[%emt 0:06:22]} f5 {[%emt 0:02:48]} 28. Ne3 {[%emt 0:01:01]} Nf6 {[%emt 0:02:18]} 29. Nd1 {[%emt 0:01:52]} f4 {[%emt 0:10:43]} 30. Qb6 {[%emt 0:01:47]} Rc6 {[%emt 0:01:25]} 31. Qf2 {[%emt 0:02:55]} Bd8 {[%emt 0:06:10]} 32. a5 {[%emt 0:00:23]} Qb7 {[%emt 0:05:43]} 33. Nb2 {[%emt 0:00:50]} Bf5 {[%emt 0:00:41]} 34. Qe2 {[%emt 0:00:05]} Qc8 {[%emt 0:03:56]} 35. Qf2 {[%emt 0:06:01]} Nh5 {[%emt 0:05:20]} 36. Na4 {[%emt 0:00:24]} Qb7 {[%emt 0:01:02]} 37. Nb6 {[%emt 0:01:14]} Kh7 {[%emt 0:00:55]} 38. Ra2 {[%emt 0:03:27]} Bd3 {[%emt 0:03:06]} 39. Bc1 {[%emt 0:01:46]} Ng3 {[%emt 0:01:45]} 40. Rd1 {[%emt 0:01:34]} Bxb6 {[%emt 0:01:16]} 41. axb6 {[%emt 0:30:03]} Rxb6 {[%emt 0:30:16]} 42. Bd2 {[%emt 0:02:18]} Bf5 {[%emt 0:00:00]} 43. Rda1 {[%emt 0:00:00]} Bc8 {[%emt 0:00:00]} 44. Be1 {[%emt 0:00:00]} Nf5 {[%emt 0:00:00]} 45. Qc2 {[%emt 0:00:00]} d5 {[%emt 0:00:00]} 46. Bf2 {[%emt 0:00:00]} Rg6 {[%emt 0:00:00]} 47. Re1 {[%emt 0:00:00]} Qc7 {[%emt 0:00:00]} 48. Ra5 {[%emt 0:00:00]} Qd6 {[%emt 0:00:00]} 49. Rd1 {[%emt 0:00:00]} Be6 {[%emt 0:00:00]} 50. Raxd5 {[%emt 0:00:00]} Bxd5 {[%emt 0:00:00]} 51. Qxf5 {[%emt 0:00:00]} Qc6 {[%emt 0:02:29]} 52. Bc5 {[%emt 0:00:00]} Qe6 {[%emt 0:00:33]} 53. Qxe6 {[%emt 0:00:00]} Bxe6 {[%emt 0:00:03]} 54. Re1 {[%emt 0:00:00]} Bf5 {[%emt 0:00:12]} 55. Rxe5 {[%emt 0:00:00]} Bd3 {[%emt 0:00:03]} 56. Kg1 {[%emt 0:00:00]} 1/2-1/2

[Event "AUT-ch Open 2020"]
[Site "Graz"]
[Date "2020.02.19"]
[Round "7.25"]
[White "Schnider, Gert"]
[Black "Ongut, Tamas Gunes"]
[Result "1-0"]
[ECO "C84"]
[WhiteElo "2429"]
[BlackElo "2302"]
[Annotator "ChessBase"]
[PlyCount "119"]
[EventDate "2020.02.14"]
[EventType "swiss"]
[EventCountry "AUT"]
[SourceTitle "playchess.com"]
[Source "ChessBase"]
[SourceQuality "1"]
[TimeControl "40/5400+30:1800+30"]

1. e4 {[%emt 0:00:00]} e5 {[%emt 0:00:00]} 2. Nf3 {[%emt 0:00:00]} Nc6 {[%emt 0:00:00]} 3. Bb5 {[%emt 0:00:00]} a6 {[%emt 0:00:00]} 4. Ba4 {[%emt 0:00:00]} Nf6 {[%emt 0:00:02]} 5. O-O {[%emt 0:00:00]} Be7 {[%emt 0:00:07]} 6. d3 {[%emt 0:00:20]} b5 {[%emt 0:00:09]} 7. Bb3 {[%emt 0:00:02]} d6 {[%emt 0:00:06]} 8. a3 {[%emt 0:00:49]} O-O {[%emt 0:00:36]} 9. h3 {[%emt 0:00:04]} Bb7 {[%emt 0:02:53]} 10. Nc3 {[%emt 0:00:11]} Qd7 {[%emt 0:01:55]} 11. Re1 {[%emt 0:08:04]} h6 {[%emt 0:06:37]} 12. Be3 {[%emt 0:05:50]} Rfe8 {[%emt 0:13:04]} 13. Qd2 {[%emt 0:10:40]} Bf8 {[%emt 0:00:28]} 14. Nh4 {[%emt 0:01:37]} Nd4 {[%emt 0:09:02]} 15. Bxd4 {[%emt 0:03:28]} exd4 {[%emt 0:00:10]} 16. Ne2 {[%emt 0:00:39]} d5 {[%emt 0:04:37]} 17. exd5 {[%emt 0:01:20]} Bxd5 {[%emt 0:02:39]} 18. Bxd5 {[%emt 0:00:45]} Qxd5 {[%emt 0:00:12]} 19. Nf3 {[%emt 0:01:28]} c5 {[%emt 0:06:00]} 20. a4 {[%emt 0:02:03]} b4 {[%emt 0:03:07]} 21. b3 {[%emt 0:01:53]} Bd6 {[%emt 0:01:50]} 22. Rf1 {[%emt 0:06:00]} Re7 {[%emt 0:03:12]} 23. Rae1 {[%emt 0:00:07]} Rae8 {[%emt 0:00:13]} 24. Nc1 {[%emt 0:00:39]} Kf8 {[%emt 0:03:20]} 25. Rxe7 {[%emt 0:00:14]} Rxe7 {[%emt 0:00:07]} 26. Re1 {[%emt 0:00:09]} Rxe1+ {[%emt 0:00:34]} 27. Qxe1 {[%emt 0:00:27]} Qf5 {[%emt 0:00:39]} 28. Kf1 {[%emt 0:01:34]} g5 {[%emt 0:06:38]} 29. Ne2 {[%emt 0:01:43]} g4 {[%emt 0:08:54]} 30. hxg4 {[%emt 0:00:23]} Nxg4 {[%emt 0:00:16]} 31. Neg1 {[%emt 0:01:17]} Nf6 {[%emt 0:06:01]} 32. Nd2 {[%emt 0:08:16]} Ng4 {[%emt 0:03:00]} 33. Ndf3 {[%emt 0:00:46]} Nf6 {[%emt 0:00:10]} 34. Qe2 {[%emt 0:09:36]} Nd5 {[%emt 0:02:55]} 35. Qe4 {[%emt 0:01:06]} Qxe4 {[%emt 0:02:26]} 36. dxe4 {[%emt 0:00:01]} Nc3 {[%emt 0:00:08]} 37. e5 {[%emt 0:00:36]} Bc7 {[%emt 0:00:15]} 38. Ne2 {[%emt 0:00:17]} Ke7 {[%emt 0:08:03]} 39. Nf4 {[%emt 0:01:05]} f6 {[%emt 0:03:37]} 40. exf6+ {[%emt 0:03:02]} Kxf6 {[%emt 0:00:04]} 41. Nd3 {[%emt 0:30:23]} Bd6 {[%emt 0:11:11]} 42. Nd2 {[%emt 0:00:00]} Ke6 {[%emt 0:04:43]} 43. g3 {[%emt 0:00:00]} Kd5 {[%emt 0:00:40]} 44. Kg2 {[%emt 0:00:00]} a5 {[%emt 0:05:29]} 45. Kf3 {[%emt 0:00:00]} Bc7 {[%emt 0:00:30]} 46. Kg4 {[%emt 0:00:00]} Bd6 {[%emt 0:06:48]} 47. Kh5 {[%emt 0:00:00]} Ne4 {[%emt 0:00:19]} 48. Nc4 {[%emt 0:00:00]} Bxg3 {[%emt 0:03:41]} 49. fxg3 {[%emt 0:00:00]} Nxg3+ {[%emt 0:00:07]} 50. Kxh6 {[%emt 0:00:00]} Nf5+ {[%emt 0:01:24]} 51. Kg5 {[%emt 0:00:00]} Ne3 {[%emt 0:00:05]} 52. Nxe3+ {[%emt 0:00:00]} dxe3 {[%emt 0:00:07]} 53. Kf4 {[%emt 0:00:00]} Kd4 {[%emt 0:00:36]} 54. Kf3 {[%emt 0:03:07]} c4 {[%emt 0:00:22]} 55. bxc4 {[%emt 0:06:25]} Kxc4 {[%emt 0:01:48]} 56. Kxe3 {[%emt 0:01:04]} b3 {[%emt 0:00:49]} 57. Kd2 {[%emt 0:00:33]} bxc2 {[%emt 0:00:40]} 58. Kxc2 {[%emt 0:00:02]} Kd4 {[%emt 0:00:16]} 59. Nb2 {[%emt 0:00:11]} Kd5 {[%emt 0:01:49]} 60. Kc3 1-0

[Event "AUT-ch Open 2020"]
[Site "Graz"]
[Date "2020.02.19"]
[Round "7.26"]
[White "Rieger, Robert"]
[Black "Halvax, Georg"]
[Result "1/2-1/2"]
[ECO "C44"]
[WhiteElo "2320"]
[BlackElo "2428"]
[Annotator "NA"]
[PlyCount "70"]
[EventDate "2020.02.14"]
[EventType "swiss"]
[EventCountry "AUT"]
[SourceTitle "playchess.com"]
[Source "ChessBase"]
[SourceQuality "1"]
[TimeControl "40/5400+30:1800+30"]

1. e4 {[%emt 0:00:00]} e5 {[%emt 0:00:00]} 2. Nf3 {[%emt 0:00:00]} Nc6 {[%emt 0:00:00]} 3. d4 {[%emt 0:00:00]} exd4 {[%emt 0:00:00]} 4. Nxd4 {[%emt 0:00:00]} Bb4+ {[%emt 0:00:01]} 5. c3 {[%emt 0:00:44]} Bc5 {[%emt 0:00:07]} 6. Nf5 {[%emt 0:12:50]} g6 {[%emt 0:02:17]} 7. Be3 {[%emt 0:08:02]} Bxe3 {[%emt 0:00:27]} 8. Nxe3 {[%emt 0:00:08]} Nf6 {[%emt 0:00:19]} 9. Bd3 {[%emt 0:02:04]} O-O {[%emt 0:00:53]} 10. c4 {[%emt 0:01:35]} Re8 {[%emt 0:08:16]} 11. Nc3 {[%emt 0:00:50]} d6 {[%emt 0:02:16]} 12. O-O {[%emt 0:04:26]} Ne5 {[%emt 0:02:34]} 13. Be2 {[%emt 0:04:14]} Ned7 {[%emt 0:05:21]} 14. f3 {[%emt 0:05:38]} b6 {[%emt 0:03:13]} 15. Qd2 {[%emt 0:03:40]} a5 {[%emt 0:04:24]} 16. Ncd5 {[%emt 0:07:12]} Bb7 {[%emt 0:03:41]} 17. Nc2 {[%emt 0:04:14]} b5 {[%emt 0:05:09]} 18. Rab1 {[%emt 0:06:19]} bxc4 {[%emt 0:01:35]} 19. Bxc4 {[%emt 0:00:29]} Ne5 {[%emt 0:01:37]} 20. Nxf6+ {[%emt 0:01:08]} Qxf6 {[%emt 0:04:03]} 21. Qc3 {[%emt 0:00:08]} Kg7 {[%emt 0:01:52]} 22. Rfd1 {[%emt 0:07:05]} c6 {[%emt 0:05:46]} 23. Ne3 {[%emt 0:03:27]} Red8 {[%emt 0:08:49]} 24. Rd2 {[%emt 0:04:32]} d5 {[%emt 0:17:12]} 25. exd5 {[%emt 0:01:10]} Nxc4 {[%emt 0:00:25]} 26. Nxc4 {[%emt 0:01:34]} cxd5 {[%emt 0:01:40]} 27. Nxa5 {[%emt 0:07:16]} d4 {[%emt 0:00:52]} 28. Qb4 {[%emt 0:00:13]} Qf5 {[%emt 0:04:24]} 29. Rbd1 {[%emt 0:03:13]} Bxf3 {[%emt 0:00:07]} 30. gxf3 {[%emt 0:00:29]} Rxa5 {[%emt 0:01:11]} 31. Rxd4 {[%emt 0:01:08]} Qxf3 {[%emt 0:16:18]} 32. Qxa5 {[%emt 0:01:09]} Qe3+ {[%emt 0:00:06]} 33. Kf1 {[%emt 0:02:18]} Qf3+ {[%emt 0:00:18]} 34. Kg1 {[%emt 0:00:05]} Qe3+ {[%emt 0:00:06]} 35. Kf1 {[%emt 0:00:04]} Qf3+ {[%emt 0:01:28]} 1/2-1/2

[Event "AUT-ch Open 2020"]
[Site "Graz"]
[Date "2020.02.19"]
[Round "7.27"]
[White "Li, Henry"]
[Black "Hoefelsauer, Thomas"]
[Result "0-1"]
[WhiteElo "2310"]
[BlackElo "2390"]
[Annotator "NA"]
[PlyCount "59"]
[EventDate "2020.02.14"]
[EventType "swiss"]
[EventCountry "AUT"]
[SourceTitle "playchess.com"]
[Source "ChessBase"]
[SourceQuality "1"]
[TimeControl "40/5400+30:1800+30"]

1. e4 {[%emt 0:00:00]} c6 {[%emt 0:00:00]} 2. d4 {[%emt 0:00:00]} d5 {[%emt 0:00:00]} 3. e5 {[%emt 0:00:00]} c5 {[%emt 0:00:00]} 4. dxc5 {[%emt 0:00:04]} e6 {[%emt 0:00:00]} 5. a3 {[%emt 0:00:10]} Bxc5 {[%emt 0:00:00]} 6. b4 {[%emt 0:00:14]} Bb6 {[%emt 0:00:00]} 7. Nf3 {[%emt 0:00:13]} a5 {[%emt 0:00:03]} 8. b5 {[%emt 0:04:56]} Nd7 {[%emt 0:00:07]} 9. Bb2 {[%emt 0:03:03]} a4 {[%emt 0:00:21]} 10. Bd3 {[%emt 0:02:03]} Nc5 {[%emt 0:00:16]} 11. O-O {[%emt 0:03:20]} Ne7 {[%emt 0:00:09]} 12. Re1 {[%emt 0:03:16]} Nxd3 {[%emt 0:01:32]} 13. Qxd3 {[%emt 0:00:50]} Bd7 {[%emt 0:04:32]} 14. Nbd2 {[%emt 0:10:56]} O-O {[%emt 0:02:42]} 15. Bd4 {[%emt 0:13:54]} Nf5 {[%emt 0:12:40]} 16. Bxb6 {[%emt 0:00:39]} Qxb6 {[%emt 0:00:03]} 17. Rab1 {[%emt 0:05:35]} Rfd8 {[%emt 0:04:25]} 18. c4 {[%emt 0:20:29]} Be8 {[%emt 0:04:27]} 19. Rec1 {[%emt 0:05:11]} Rac8 {[%emt 0:07:40]} 20. cxd5 {[%emt 0:09:25]} Rxc1+ {[%emt 0:00:55]} 21. Rxc1 {[%emt 0:00:01]} Rxd5 {[%emt 0:00:25]} 22. Rc8 {[%emt 0:00:06]} Kf8 {[%emt 0:00:13]} 23. Qc2 {[%emt 0:02:22]} Qxb5 {[%emt 0:04:51]} 24. Ng5 {[%emt 0:04:34]} Nd4 {[%emt 0:06:39]} 25. Qxh7 {[%emt 0:03:26]} Ne2+ {[%emt 0:22:07]} 26. Kh1 {[%emt 0:00:01]} Rxd2 {[%emt 0:00:23]} 27. h4 {[%emt 0:01:44]} Nf4 {[%emt 0:04:08]} 28. Kh2 {[%emt 0:01:13]} Ng6 {[%emt 0:03:07]} 29. Nf3 {[%emt 0:02:36]} Rxf2 {[%emt 0:01:44]} 30. h5 {[%emt 0:00:04]} 0-1

[Event "AUT-ch Open 2020"]
[Site "Graz"]
[Date "2020.02.19"]
[Round "7.28"]
[White "Danner, Georg"]
[Black "Secheres, Adrian-Simion"]
[Result "1/2-1/2"]
[ECO "E73"]
[WhiteElo "2295"]
[BlackElo "2295"]
[Annotator "ChessBase"]
[PlyCount "106"]
[EventDate "2020.02.14"]
[EventType "swiss"]
[EventCountry "AUT"]
[SourceTitle "playchess.com"]
[Source "ChessBase"]
[SourceQuality "1"]
[TimeControl "40/5400+30:1800+30"]

1. d4 {[%emt 0:00:08]} Nf6 {[%emt 0:00:00]} 2. c4 {[%emt 0:00:06]} g6 {[%emt 0:00:00]} 3. Nc3 {[%emt 0:00:05]} Bg7 {[%emt 0:00:10]} 4. e4 {[%emt 0:00:05]} d6 {[%emt 0:00:09]} 5. Be2 {[%emt 0:00:07]} O-O {[%emt 0:00:12]} 6. Be3 {[%emt 0:00:12]} Na6 {[%emt 0:00:17]} 7. Nf3 {[%emt 0:00:14]} e5 {[%emt 0:00:25]} 8. d5 {[%emt 0:00:32]} c6 {[%emt 0:00:18]} 9. Nd2 {[%emt 0:01:15]} Bd7 {[%emt 0:05:07]} 10. O-O {[%emt 0:00:59]} c5 {[%emt 0:03:49]} 11. Bg5 {[%emt 0:20:32]} h6 {[%emt 0:11:25]} 12. Bh4 {[%emt 0:00:11]} Qe8 {[%emt 0:00:34]} 13. Nb5 {[%emt 0:04:52]} Qe7 {[%emt 0:15:06]} 14. a3 {[%emt 0:00:53]} Rfc8 {[%emt 0:01:49]} 15. Rb1 {[%emt 0:13:03]} Qf8 {[%emt 0:04:36]} 16. Bxf6 {[%emt 0:06:06]} Bxf6 {[%emt 0:01:33]} 17. Bg4 {[%emt 0:00:06]} Qe7 {[%emt 0:05:39]} 18. Bxd7 {[%emt 0:00:26]} Qxd7 {[%emt 0:00:02]} 19. h3 {[%emt 0:08:18]} Nb8 {[%emt 0:05:31]} 20. Qg4 {[%emt 0:04:24]} Be7 {[%emt 0:04:44]} 21. Qxd7 {[%emt 0:10:05]} Nxd7 {[%emt 0:00:07]} 22. g3 {[%emt 0:05:38]} a6 {[%emt 0:03:00]} 23. Nc3 {[%emt 0:00:06]} Rab8 {[%emt 0:02:55]} 24. a4 {[%emt 0:04:38]} h5 {[%emt 0:07:10]} 25. Ra1 {[%emt 0:02:34]} f5 {[%emt 0:09:10]} 26. Kg2 {[%emt 0:04:37]} Rf8 {[%emt 0:03:07]} 27. Rae1 {[%emt 0:02:17]} Rf7 {[%emt 0:04:11]} 28. f4 {[%emt 0:01:56]} Rbf8 {[%emt 0:02:06]} 29. exf5 {[%emt 0:01:16]} Rxf5 {[%emt 0:02:09]} 30. Nf3 {[%emt 0:01:40]} Bf6 {[%emt 0:03:44]} 31. Ne4 {[%emt 0:02:54]} Be7 {[%emt 0:00:06]} 32. fxe5 {[%emt 0:01:01]} Nxe5 {[%emt 0:00:19]} 33. Nxe5 {[%emt 0:00:11]} Rxe5 {[%emt 0:00:06]} 34. Rxf8+ {[%emt 0:00:53]} Kxf8 {[%emt 0:00:14]} 35. Rf1+ {[%emt 0:01:27]} Ke8 {[%emt 0:01:42]} 36. Kf3 {[%emt 0:00:09]} Rf5+ {[%emt 0:01:50]} 37. Ke2 {[%emt 0:00:02]} Rxf1 {[%emt 0:01:44]} 38. Kxf1 {[%emt 0:00:02]} Bf8 {[%emt 0:00:22]} 39. Ke2 {[%emt 0:01:09]} Ke7 {[%emt 0:00:22]} 40. Kf3 {[%emt 0:01:00]} Bg7 {[%emt 0:02:42]} 41. b3 {[%emt 0:30:02]} Be5 {[%emt 0:03:55]} 42. Ng5 {[%emt 0:00:00]} Kf6 {[%emt 0:04:02]} 43. Ne6 {[%emt 0:00:00]} Kf5 {[%emt 0:02:49]} 44. Nd8 {[%emt 0:00:00]} b6 {[%emt 0:00:27]} 45. Nc6 {[%emt 0:00:00]} Bf6 {[%emt 0:08:29]} 46. Nb8 {[%emt 0:00:47]} a5 {[%emt 0:00:34]} 47. Nc6 {[%emt 0:00:06]} Bg5 {[%emt 0:02:14]} 48. Na7 {[%emt 0:04:04]} Bd8 {[%emt 0:03:39]} 49. Nc8 {[%emt 0:00:19]} Ke5 {[%emt 0:01:43]} 50. Ke3 {[%emt 0:00:36]} Bg5+ {[%emt 0:01:01]} 51. Kd3 {[%emt 0:00:59]} Bd8 {[%emt 0:00:15]} 52. Ke2 {[%emt 0:00:09]} h4 {[%emt 0:03:17]} 53. g4 {[%emt 0:01:09]} g5 {[%emt 0:02:22]} 1/2-1/2

[Event "AUT-ch Open 2020"]
[Site "Graz"]
[Date "2020.02.19"]
[Round "7.29"]
[White "Freitag, Manfred"]
[Black "Peycheva, Gergana"]
[Result "0-1"]
[ECO "B31"]
[WhiteElo "2378"]
[BlackElo "2378"]
[Annotator "ChessBase"]
[PlyCount "134"]
[EventDate "2020.02.14"]
[EventType "swiss"]
[EventCountry "AUT"]
[SourceTitle "playchess.com"]
[Source "ChessBase"]
[SourceQuality "1"]
[TimeControl "40/5400+30:1800+30"]

1. e4 {[%emt 0:00:00]} c5 {[%emt 0:00:00]} 2. Nf3 {[%emt 0:00:00]} Nc6 {[%emt 0:00:39]} 3. Bb5 {[%emt 0:00:14]} g6 {[%emt 0:00:54]} 4. O-O {[%emt 0:00:14]} Bg7 {[%emt 0:00:37]} 5. Re1 {[%emt 0:00:22]} Nf6 {[%emt 0:01:24]} 6. e5 {[%emt 0:00:18]} Nd5 {[%emt 0:01:21]} 7. Nc3 {[%emt 0:00:05]} Nc7 {[%emt 0:03:03]} 8. Bxc6 {[%emt 0:00:10]} dxc6 {[%emt 0:01:55]} 9. Ne4 {[%emt 0:00:06]} Ne6 {[%emt 0:05:45]} 10. d3 {[%emt 0:00:16]} O-O {[%emt 0:00:27]} 11. Be3 {[%emt 0:00:53]} b6 {[%emt 0:00:24]} 12. Qd2 {[%emt 0:00:17]} Nd4 {[%emt 0:05:51]} 13. Nxd4 {[%emt 0:00:58]} cxd4 {[%emt 0:00:55]} 14. Bh6 {[%emt 0:00:03]} Bf5 {[%emt 0:10:04]} 15. Qf4 {[%emt 0:00:45]} c5 {[%emt 0:09:51]} 16. Ng3 {[%emt 0:03:06]} Qd7 {[%emt 0:07:44]} 17. h4 {[%emt 0:03:07]} Qe6 {[%emt 0:06:32]} 18. a4 {[%emt 0:01:29]} a6 {[%emt 0:01:44]} 19. b3 {[%emt 0:01:53]} Rfd8 {[%emt 0:02:20]} 20. Bxg7 {[%emt 0:01:43]} Kxg7 {[%emt 0:00:08]} 21. Re2 {[%emt 0:03:27]} Ra7 {[%emt 0:01:20]} 22. f3 {[%emt 0:00:27]} Rc7 {[%emt 0:02:18]} 23. Nf1 {[%emt 0:02:29]} Qc8 {[%emt 0:03:03]} 24. Nd2 {[%emt 0:00:59]} h6 {[%emt 0:01:19]} 25. g4 {[%emt 0:02:30]} Be6 {[%emt 0:00:44]} 26. Ne4 {[%emt 0:01:21]} b5 {[%emt 0:05:05]} 27. axb5 {[%emt 0:01:01]} axb5 {[%emt 0:00:02]} 28. Rae1 {[%emt 0:17:41]} Ra7 {[%emt 0:04:21]} 29. h5 {[%emt 0:01:55]} g5 {[%emt 0:02:38]} 30. Qg3 {[%emt 0:00:05]} Rg8 {[%emt 0:03:54]} 31. f4 {[%emt 0:03:07]} Kh7 {[%emt 0:05:25]} 32. fxg5 {[%emt 0:09:31]} hxg5 {[%emt 0:00:01]} 33. Rf2 {[%emt 0:00:35]} Kh6 {[%emt 0:03:26]} 34. Ref1 {[%emt 0:00:25]} Rg7 {[%emt 0:00:52]} 35. Rf5 {[%emt 0:05:35]} Bxf5 {[%emt 0:01:15]} 36. gxf5 {[%emt 0:00:01]} Rg8 {[%emt 0:03:13]} 37. e6 {[%emt 0:09:02]} f6 {[%emt 0:01:18]} 38. Nf2 {[%emt 0:00:21]} Ra2 {[%emt 0:02:19]} 39. Ng4+ {[%emt 0:01:15]} Kh7 {[%emt 0:00:08]} 40. Rf2 {[%emt 0:02:44]} Qb8 {[%emt 0:02:15]} 41. Qh3 {[%emt 0:31:34]} Ra1+ {[%emt 0:30:38]} 42. Kg2 {[%emt 0:00:47]} Qa8+ {[%emt 0:00:54]} 43. Qf3 {[%emt 0:00:05]} Rc1 {[%emt 0:00:00]} 44. Qxa8 {[%emt 0:00:00]} Rxa8 {[%emt 0:00:00]} 45. Kf3 {[%emt 0:00:00]} Ra2 {[%emt 0:00:00]} 46. Re2 {[%emt 0:00:00]} Rf1+ {[%emt 0:00:00]} 47. Nf2 {[%emt 0:00:00]} Kh6 {[%emt 0:00:00]} 48. Kg2 {[%emt 0:00:00]} Raa1 {[%emt 0:00:00]} 49. Ng4+ {[%emt 0:00:00]} Kg7 {[%emt 0:00:00]} 50. h6+ {[%emt 0:00:00]} Kf8 {[%emt 0:00:00]} 51. Nf2 {[%emt 0:00:00]} Kg8 {[%emt 0:00:00]} 52. b4 {[%emt 0:00:00]} cxb4 {[%emt 0:00:00]} 53. Re4 {[%emt 0:00:00]} Rfc1 {[%emt 0:00:00]} 54. Ng4 {[%emt 0:00:00]} Rxc2+ {[%emt 0:00:00]} 55. Kh3 {[%emt 0:00:00]} Rh1+ {[%emt 0:00:00]} 56. Kg3 {[%emt 0:00:00]} b3 {[%emt 0:01:51]} 57. Nxf6+ {[%emt 0:00:00]} exf6 {[%emt 0:01:23]} 58. e7 {[%emt 0:00:00]} Rc8 {[%emt 0:00:01]} 59. e8=Q+ {[%emt 0:00:00]} Rxe8 {[%emt 0:00:03]} 60. Rxe8+ {[%emt 0:00:00]} Kh7 {[%emt 0:00:10]} 61. Re2 {[%emt 0:00:00]} Rd1 {[%emt 0:00:10]} 62. Kg4 {[%emt 0:00:00]} Kxh6 {[%emt 0:00:15]} 63. Rb2 {[%emt 0:00:00]} Rxd3 {[%emt 0:00:07]} 64. Rxb3 {[%emt 0:00:00]} Re3 {[%emt 0:01:25]} 65. Rb4 {[%emt 0:00:00]} Re4+ {[%emt 0:01:26]} 66. Kg3 {[%emt 0:00:00]} Re5 {[%emt 0:00:12]} 67. Kg4 {[%emt 0:00:00]} Rd5 {[%emt 0:00:28]} 0-1

[Event "AUT-ch Open 2020"]
[Site "Graz"]
[Date "2020.02.19"]
[Round "7.30"]
[White "Neuschmied, Siegfried"]
[Black "Kozak, Antoni"]
[Result "1/2-1/2"]
[ECO "B06"]
[WhiteElo "2372"]
[BlackElo "2268"]
[Annotator "NA"]
[PlyCount "72"]
[EventDate "2020.02.14"]
[EventType "swiss"]
[EventCountry "AUT"]
[SourceTitle "playchess.com"]
[Source "ChessBase"]
[SourceQuality "1"]
[TimeControl "40/5400+30:1800+30"]

1. e4 {[%emt 0:00:00]} g6 {[%emt 0:00:00]} 2. d4 {[%emt 0:00:00]} Bg7 {[%emt 0:00:00]} 3. Nc3 {[%emt 0:00:01]} a6 {[%emt 0:00:00]} 4. h4 {[%emt 0:00:15]} h5 {[%emt 0:00:00]} 5. Nf3 {[%emt 0:00:06]} d6 {[%emt 0:05:04]} 6. Ng5 {[%emt 0:00:15]} b5 {[%emt 0:02:14]} 7. Be3 {[%emt 0:00:26]} Nd7 {[%emt 0:00:46]} 8. a4 {[%emt 0:08:34]} Rb8 {[%emt 0:10:56]} 9. axb5 {[%emt 0:02:24]} axb5 {[%emt 0:00:04]} 10. Bxb5 {[%emt 0:00:11]} Nh6 {[%emt 0:00:10]} 11. f3 {[%emt 0:04:51]} O-O {[%emt 0:00:14]} 12. Qd2 {[%emt 0:00:18]} c5 {[%emt 0:01:20]} 13. Bxd7 Bxd7 {[%emt 0:02:15]} 14. dxc5 {[%emt 0:13:33]} Rxb2 {[%emt 0:05:28]} 15. O-O {[%emt 0:02:33]} dxc5 {[%emt 0:11:56]} 16. Rad1 {[%emt 0:08:49]} Qc8 {[%emt 0:05:36]} 17. Nd5 {[%emt 0:13:50]} Re8 {[%emt 0:03:55]} 18. Rb1 {[%emt 0:00:07]} Rxb1 {[%emt 0:11:05]} 19. Rxb1 {[%emt 0:00:02]} Bc6 {[%emt 0:00:04]} 20. c4 {[%emt 0:09:17]} f6 {[%emt 0:03:11]} 21. Nb6 {[%emt 0:02:14]} Qb8 {[%emt 0:03:23]} 22. Ne6 {[%emt 0:01:12]} Nf7 {[%emt 0:00:10]} 23. Nxc5 {[%emt 0:02:00]} Ne5 {[%emt 0:00:15]} 24. Qc2 {[%emt 0:01:00]} f5 {[%emt 0:01:54]} 25. Nd5 {[%emt 0:03:05]} Qd6 {[%emt 0:00:05]} 26. exf5 {[%emt 0:01:35]} Nxc4 {[%emt 0:02:25]} 27. Qxc4 {[%emt 0:01:10]} Bxd5 {[%emt 0:00:16]} 28. Qd3 {[%emt 0:06:22]} Ba2 {[%emt 0:03:55]} 29. Qb5 {[%emt 0:04:52]} Rf8 {[%emt 0:06:40]} 30. Ne4 {[%emt 0:02:03]} Qa3 {[%emt 0:01:07]} 31. Re1 {[%emt 0:01:16]} gxf5 {[%emt 0:02:38]} 32. Ng5 {[%emt 0:00:58]} Qc3 {[%emt 0:01:02]} 33. Qe2 {[%emt 0:02:32]} Bc4 {[%emt 0:01:19]} 34. Qd1 {[%emt 0:04:18]} Bb3 {[%emt 0:01:39]} 35. Qe2 {[%emt 0:00:10]} Bc4 {[%emt 0:00:04]} 36. Qd1 {[%emt 0:01:09]} Bb3 {[%emt 0:00:05]} 1/2-1/2